[Event "Titled Tuesday Blitz October 11 Early 2022"]
[White "Halkias, Stelios"]
[Black "Ovchinnikov, Vsevolod"]
[WhiteFideId "4201809"]
[BlackFideId "24176842"]
[WhiteElo "2453"]
[BlackElo "2376"]
[Result "1/2-1/2"]
[Round "08"]
[TimeControl "180+1"]
[Date "2022.10.12"]
[WhiteClock "0:00:16"]
[BlackClock "0:00:25"]

1. Nf3 {[%clk 0:03:00]}  Nf6 {[%clk 0:02:59]} 2. c4 {[%clk 0:02:59]}  g6 {[%clk 0:02:59]} 3. Nc3 {[%clk 0:02:59]}  d5 {[%clk 0:03:00]} 4. cxd5 {[%clk 0:02:58]}  Nxd5 {[%clk 0:03:01]} 5. h4 {[%clk 0:02:59]}  Bg7 {[%clk 0:02:53]} 6. e4 {[%clk 0:02:59]}  Nxc3 {[%clk 0:02:53]} 7. dxc3 {[%clk 0:02:59]}  Qxd1+ {[%clk 0:02:52]} 8. Kxd1 {[%clk 0:02:59]}  Bg4 {[%clk 0:02:52]} 9. Kc2 {[%clk 0:02:55]}  Nd7 {[%clk 0:02:48]} 10. Be3 {[%clk 0:02:44]}  Nf6 {[%clk 0:02:24]} 11. Nd2 {[%clk 0:02:43]}  Be6 {[%clk 0:02:18]} 12. f3 {[%clk 0:02:40]}  a6 {[%clk 0:02:17]} 13. a4 {[%clk 0:02:35]}  h5 {[%clk 0:02:15]} 14. Bc4 {[%clk 0:02:34]}  Bxc4 {[%clk 0:02:14]} 15. Nxc4 {[%clk 0:02:34]}  Nd7 {[%clk 0:02:13]} 16. a5 {[%clk 0:02:19]}  O-O-O {[%clk 0:02:10]} 17. Bg5 {[%clk 0:02:14]}  Bf6 {[%clk 0:02:09]} 18. Rad1 {[%clk 0:02:11]}  Bxg5 {[%clk 0:02:05]} 19. hxg5 {[%clk 0:02:11]}  Nc5 {[%clk 0:02:02]} 20. Ne5 {[%clk 0:02:07]}  Rhf8 {[%clk 0:01:28]} 21. Rxd8+ {[%clk 0:01:40]}  Kxd8 {[%clk 0:01:29]} 22. Rf1 {[%clk 0:01:39]}  Ke8 {[%clk 0:01:22]} 23. b4 {[%clk 0:01:36]}  Ne6 {[%clk 0:01:21]} 24. f4 {[%clk 0:01:36]}  Rg8 {[%clk 0:01:16]} 25. g3 {[%clk 0:01:33]}  f6 {[%clk 0:01:15]} 26. gxf6 {[%clk 0:01:11]}  exf6 {[%clk 0:01:16]} 27. Nf3 {[%clk 0:01:11]}  Kf7 {[%clk 0:00:52]} 28. e5 {[%clk 0:01:00]}  f5 {[%clk 0:00:35]} 29. Rd1 {[%clk 0:00:59]}  Ke7 {[%clk 0:00:35]} 30. Rh1 {[%clk 0:00:44]}  Kf7 {[%clk 0:00:29]} 31. c4 {[%clk 0:00:42]}  Rd8 {[%clk 0:00:27]} 32. Kc3 {[%clk 0:00:42]}  Rd7 {[%clk 0:00:27]} 33. b5 {[%clk 0:00:39]}  Nc5 {[%clk 0:00:27]} 34. Ng5+ {[%clk 0:00:35]}  Ke7 {[%clk 0:00:27]} 35. Kb4 {[%clk 0:00:34]}  Nd3+ {[%clk 0:00:27]} 36. Kc3 {[%clk 0:00:34]}  Nc5 {[%clk 0:00:25]} 37. Kb4 {[%clk 0:00:16]}  Nd3+ {[%clk 0:00:25]} 38. Kc3 {[%clk 0:00:16]}  Nc5 {[%clk 0:00:25]} 1/2-1/2


[Site "https://www.chess.com"]

[Event "Titled Tuesday Blitz October 11 Early 2022"]
[White "Heinemann, Josefine"]
[Black "Johnson, Ben"]
[WhiteFideId "12900460"]
[BlackFideId "2010917"]
[WhiteElo "2300"]
[BlackElo "2219"]
[Result "1-0"]
[Round "08"]
[TimeControl "180+1"]
[Date "2022.10.12"]
[WhiteClock "0:00:28"]
[BlackClock "0:00:01"]

1. d4 {[%clk 0:03:00]}  Nf6 {[%clk 0:02:59]} 2. c4 {[%clk 0:03:00]}  e6 {[%clk 0:02:59]} 3. Nf3 {[%clk 0:03:00]}  d5 {[%clk 0:02:59]} 4. Nc3 {[%clk 0:02:59]}  Bb4 {[%clk 0:02:59]} 5. Bg5 {[%clk 0:02:56]}  h6 {[%clk 0:02:59]} 6. Bxf6 {[%clk 0:02:56]}  Qxf6 {[%clk 0:03:00]} 7. e3 {[%clk 0:02:56]}  O-O {[%clk 0:02:57]} 8. Qb3 {[%clk 0:02:54]}  c5 {[%clk 0:02:53]} 9. cxd5 {[%clk 0:02:53]}  exd5 {[%clk 0:02:50]} 10. dxc5 {[%clk 0:02:53]}  Bxc3+ {[%clk 0:02:47]} 11. Qxc3 {[%clk 0:02:54]}  Qxc3+ {[%clk 0:02:46]} 12. bxc3 {[%clk 0:02:53]}  Nd7 {[%clk 0:02:40]} 13. Rd1 {[%clk 0:02:33]}  Nf6 {[%clk 0:02:39]} 14. Nd4 {[%clk 0:02:32]}  Bd7 {[%clk 0:02:34]} 15. Bd3 {[%clk 0:02:29]}  Rac8 {[%clk 0:02:27]} 16. Rb1 {[%clk 0:02:27]}  Rb8 {[%clk 0:01:51]} 17. Kd2 {[%clk 0:02:25]}  Rfc8 {[%clk 0:01:48]} 18. f3 {[%clk 0:02:19]}  Rxc5 {[%clk 0:01:45]} 19. Rb3 {[%clk 0:02:15]}  b6 {[%clk 0:01:37]} 20. Ra3 {[%clk 0:02:09]}  Rb7 {[%clk 0:01:31]} 21. Rb1 {[%clk 0:02:07]}  Rbc7 {[%clk 0:01:27]} 22. h4 {[%clk 0:02:03]}  Kf8 {[%clk 0:01:18]} 23. g4 {[%clk 0:02:01]}  Ke7 {[%clk 0:01:15]} 24. g5 {[%clk 0:02:00]}  hxg5 {[%clk 0:01:12]} 25. hxg5 {[%clk 0:02:01]}  Ne8 {[%clk 0:01:11]} 26. Rh1 {[%clk 0:01:54]}  Nd6 {[%clk 0:01:06]} 27. Rh7 {[%clk 0:01:50]}  Kf8 {[%clk 0:00:57]} 28. Rh8+ {[%clk 0:01:49]}  Ke7 {[%clk 0:00:57]} 29. Ra8 {[%clk 0:01:49]}  a5 {[%clk 0:00:51]} 30. Rb3 {[%clk 0:01:46]}  Ba4 {[%clk 0:00:45]} 31. Rxb6 {[%clk 0:01:42]}  Rxc3 {[%clk 0:00:41]} 32. Rxa5 {[%clk 0:01:41]}  Bd7 {[%clk 0:00:28]} 33. Rxd5 {[%clk 0:01:37]}  Nc4+ {[%clk 0:00:24]} 34. Bxc4 {[%clk 0:01:37]}  R3xc4 {[%clk 0:00:20]} 35. Re5+ {[%clk 0:01:35]}  Kd8 {[%clk 0:00:13]} 36. Rb8+ {[%clk 0:01:33]}  Rc8 {[%clk 0:00:13]} 37. Rxc8+ {[%clk 0:01:33]}  Kxc8 {[%clk 0:00:12]} 38. Ra5 {[%clk 0:01:24]}  Kd8 {[%clk 0:00:11]} 39. f4 {[%clk 0:01:22]}  Ke7 {[%clk 0:00:11]} 40. Ra7 {[%clk 0:01:21]}  Rc5 {[%clk 0:00:08]} 41. a4 {[%clk 0:01:18]}  Rc4 {[%clk 0:00:06]} 42. a5 {[%clk 0:01:18]}  Ra4 {[%clk 0:00:07]} 43. Ke2 {[%clk 0:01:09]}  Ra2+ {[%clk 0:00:06]} 44. Kf3 {[%clk 0:01:09]}  Kd6 {[%clk 0:00:06]} 45. f5 {[%clk 0:00:54]}  Ba4 {[%clk 0:00:03]} 46. Rxf7 {[%clk 0:00:45]}  Bd1+ {[%clk 0:00:04]} 47. Kg3 {[%clk 0:00:45]}  Rxa5 {[%clk 0:00:03]} 48. Rxg7 {[%clk 0:00:44]}  Ra3 {[%clk 0:00:03]} 49. Kf4 {[%clk 0:00:43]}  Ra2 {[%clk 0:00:03]} 50. g6 {[%clk 0:00:34]}  Rf2+ {[%clk 0:00:03]} 51. Kg5 {[%clk 0:00:34]}  Ke5 {[%clk 0:00:03]} 52. Re7+ {[%clk 0:00:34]}  Kd5 {[%clk 0:00:03]} 53. g7 {[%clk 0:00:33]}  Rg2+ {[%clk 0:00:02]} 54. Kf6 {[%clk 0:00:33]}  Ba4 {[%clk 0:00:01]} 55. Ne6 {[%clk 0:00:29]}  Rg1 {[%clk 0:00:01]} 56. Ng5 {[%clk 0:00:28]} 1-0


[Site "https://www.chess.com"]

[Event "Titled Tuesday Blitz October 11 Early 2022"]
[White "Ilkhomi, Jaloliddin"]
[Black "Hristodoulou, Panagiotis"]
[WhiteFideId "14700948"]
[BlackFideId "4214340"]
[WhiteElo "2045"]
[BlackElo "2272"]
[Result "1-0"]
[Round "08"]
[TimeControl "180+1"]
[Date "2022.10.12"]
[WhiteClock "0:01:51"]
[BlackClock "0:01:22"]

1. d4 {[%clk 0:03:00]}  Nf6 {[%clk 0:02:24]} 2. Nf3 {[%clk 0:02:59]}  e6 {[%clk 0:02:24]} 3. Bf4 {[%clk 0:02:59]}  d5 {[%clk 0:02:22]} 4. e3 {[%clk 0:02:59]}  c5 {[%clk 0:02:22]} 5. Nbd2 {[%clk 0:03:00]}  Nc6 {[%clk 0:02:22]} 6. c3 {[%clk 0:03:00]}  Bd6 {[%clk 0:02:16]} 7. Bg3 {[%clk 0:03:00]}  O-O {[%clk 0:02:16]} 8. Bd3 {[%clk 0:03:00]}  Qc7 {[%clk 0:02:08]} 9. dxc5 {[%clk 0:02:59]}  Bxg3 {[%clk 0:02:07]} 10. hxg3 {[%clk 0:03:00]}  e5 {[%clk 0:02:08]} 11. e4 {[%clk 0:02:57]}  Be6 {[%clk 0:02:02]} 12. exd5 {[%clk 0:02:55]}  Bxd5 {[%clk 0:02:03]} 13. Ng5 {[%clk 0:02:53]}  h6 {[%clk 0:02:03]} 14. Nge4 {[%clk 0:02:52]}  Nxe4 {[%clk 0:02:03]} 15. Bxe4 {[%clk 0:02:50]}  Rad8 {[%clk 0:02:03]} 16. Qc2 {[%clk 0:02:49]}  Bxe4 {[%clk 0:02:01]} 17. Nxe4 {[%clk 0:02:49]}  f5 {[%clk 0:01:36]} 18. Nd6 {[%clk 0:02:43]}  e4 {[%clk 0:01:36]} 19. O-O-O {[%clk 0:02:26]}  Ne5 {[%clk 0:01:33]} 20. Kb1 {[%clk 0:01:56]}  Qxc5 {[%clk 0:01:25]} 21. Nxb7 {[%clk 0:01:56]}  Qb6 {[%clk 0:01:21]} 22. Nxd8 {[%clk 0:01:54]}  Rxd8 {[%clk 0:01:22]} 23. Qb3+ {[%clk 0:01:51]} 1-0


[Site "https://www.chess.com"]

[Event "Titled Tuesday Blitz October 11 Early 2022"]
[White "Indjic, Aleksandar"]
[Black "Torres Boch, Jose Francisco"]
[WhiteFideId "911925"]
[BlackFideId "2278383"]
[WhiteElo "2592"]
[BlackElo "2073"]
[Result "1-0"]
[Round "08"]
[TimeControl "180+1"]
[Date "2022.10.12"]
[WhiteClock "0:02:29"]
[BlackClock "0:02:04"]

1. e4 {[%clk 0:03:00]}  e5 {[%clk 0:02:56]} 2. Nf3 {[%clk 0:03:01]}  Nc6 {[%clk 0:02:57]} 3. d4 {[%clk 0:03:01]}  exd4 {[%clk 0:02:56]} 4. Bc4 {[%clk 0:02:59]}  Bc5 {[%clk 0:02:55]} 5. Ng5 {[%clk 0:02:54]}  Nh6 {[%clk 0:02:23]} 6. Nxf7 {[%clk 0:02:54]}  Nxf7 {[%clk 0:02:11]} 7. Bxf7+ {[%clk 0:02:55]}  Kxf7 {[%clk 0:02:11]} 8. Qh5+ {[%clk 0:02:55]}  Kg8 {[%clk 0:02:10]} 9. Qxc5 {[%clk 0:02:44]}  Qe7 {[%clk 0:02:10]} 10. Qxe7 {[%clk 0:02:33]}  Nxe7 {[%clk 0:02:11]} 11. O-O {[%clk 0:02:31]}  d5 {[%clk 0:02:09]} 12. Re1 {[%clk 0:02:31]}  dxe4 {[%clk 0:02:04]} 13. Rxe4 {[%clk 0:02:30]}  Nc6 {[%clk 0:02:04]} 14. Re8+ {[%clk 0:02:29]} 1-0


[Site "https://www.chess.com"]

[Event "Titled Tuesday Blitz October 11 Early 2022"]
[White "Krzywda, Andrzej"]
[Black "Hartikainen, Jarmo"]
[WhiteFideId "1114565"]
[BlackFideId "503134"]
[WhiteElo "2149"]
[BlackElo "2156"]
[Result "0-1"]
[Round "08"]
[TimeControl "180+1"]
[Date "2022.10.12"]
[WhiteClock "0:00:05"]
[BlackClock "0:00:07"]

1. d4 {[%clk 0:03:00]}  Nf6 {[%clk 0:02:58]} 2. c4 {[%clk 0:03:01]}  g6 {[%clk 0:02:59]} 3. Nc3 {[%clk 0:03:01]}  d5 {[%clk 0:02:59]} 4. cxd5 {[%clk 0:03:01]}  Nxd5 {[%clk 0:02:59]} 5. e4 {[%clk 0:03:01]}  Nxc3 {[%clk 0:02:59]} 6. bxc3 {[%clk 0:03:02]}  Bg7 {[%clk 0:03:00]} 7. Bc4 {[%clk 0:03:02]}  O-O {[%clk 0:03:00]} 8. Be3 {[%clk 0:03:02]}  c5 {[%clk 0:03:00]} 9. Ne2 {[%clk 0:03:02]}  Nd7 {[%clk 0:03:01]} 10. O-O {[%clk 0:02:57]}  a6 {[%clk 0:02:56]} 11. h4 {[%clk 0:02:47]}  e6 {[%clk 0:02:48]} 12. h5 {[%clk 0:02:36]}  b5 {[%clk 0:02:28]} 13. Bb3 {[%clk 0:02:35]}  Bb7 {[%clk 0:02:28]} 14. Ng3 {[%clk 0:02:16]}  c4 {[%clk 0:01:13]} 15. Bc2 {[%clk 0:02:15]}  f5 {[%clk 0:01:13]} 16. hxg6 {[%clk 0:01:57]}  f4 {[%clk 0:01:01]} 17. Qh5 {[%clk 0:01:43]}  hxg6 {[%clk 0:00:57]} 18. Qxg6 {[%clk 0:01:40]}  Qf6 {[%clk 0:00:48]} 19. Qh5 {[%clk 0:01:29]}  fxe3 {[%clk 0:00:42]} 20. fxe3 {[%clk 0:01:29]}  Qh6 {[%clk 0:00:42]} 21. e5 {[%clk 0:01:20]}  Qxh5 {[%clk 0:00:34]} 22. Nxh5 {[%clk 0:01:21]}  Rxf1+ {[%clk 0:00:34]} 23. Rxf1 {[%clk 0:01:21]}  Rf8 {[%clk 0:00:34]} 24. Re1 {[%clk 0:01:10]}  Bh6 {[%clk 0:00:32]} 25. a4 {[%clk 0:00:52]}  Bc6 {[%clk 0:00:30]} 26. axb5 {[%clk 0:00:51]}  axb5 {[%clk 0:00:30]} 27. Bd1 {[%clk 0:00:39]}  Bg5 {[%clk 0:00:30]} 28. Bg4 {[%clk 0:00:38]}  Re8 {[%clk 0:00:21]} 29. Kf2 {[%clk 0:00:38]}  Bd5 {[%clk 0:00:14]} 30. e4 {[%clk 0:00:34]}  Bc6 {[%clk 0:00:12]} 31. Kf3 {[%clk 0:00:31]}  Kf7 {[%clk 0:00:12]} 32. Ng3 {[%clk 0:00:29]}  Ra8 {[%clk 0:00:11]} 33. Rh1 {[%clk 0:00:28]}  Ra3 {[%clk 0:00:11]} 34. Ne2 {[%clk 0:00:24]}  b4 {[%clk 0:00:09]} 35. d5 {[%clk 0:00:14]}  exd5 {[%clk 0:00:08]} 36. Rh7+ {[%clk 0:00:14]}  Kg8 {[%clk 0:00:08]} 37. Rxd7 {[%clk 0:00:09]}  Bxd7 {[%clk 0:00:08]} 38. Bxd7 {[%clk 0:00:10]}  b3 {[%clk 0:00:09]} 39. Be6+ {[%clk 0:00:03]}  Kf8 {[%clk 0:00:08]} 40. Bxd5 {[%clk 0:00:04]}  b2 {[%clk 0:00:08]} 41. Nd4 {[%clk 0:00:03]}  b1=Q {[%clk 0:00:08]} 42. Ne6+ {[%clk 0:00:04]}  Ke7 {[%clk 0:00:07]} 43. Nxg5 {[%clk 0:00:04]}  Rxc3+ {[%clk 0:00:07]} 44. Kg4 {[%clk 0:00:05]}  Qd1+ {[%clk 0:00:07]} 45. Kf5 {[%clk 0:00:06]}  Qf1+ {[%clk 0:00:07]} 46. Nf3 {[%clk 0:00:06]}  Qxg2 {[%clk 0:00:06]} 47. Kf4 {[%clk 0:00:06]}  Qxf3+ {[%clk 0:00:06]} 48. Kg5 {[%clk 0:00:06]}  Qg3+ {[%clk 0:00:06]} 49. Kf5 {[%clk 0:00:06]}  Rc2 {[%clk 0:00:07]} 50. Bxc4 {[%clk 0:00:05]}  Rf2# {[%clk 0:00:07]} 0-1


[Site "https://www.chess.com"]

[Event "Titled Tuesday Blitz October 11 Early 2022"]
[White "Lauridsen, Jesper Morch"]
[Black "Omariev, Maksim"]
[WhiteFideId "1401890"]
[BlackFideId "4193423"]
[WhiteElo "2183"]
[BlackElo "2431"]
[Result "1/2-1/2"]
[Round "08"]
[TimeControl "180+1"]
[Date "2022.10.12"]
[WhiteClock "0:00:15"]
[BlackClock "0:00:13"]

1. e4 {[%clk 0:03:00]}  c5 {[%clk 0:02:59]} 2. Nf3 {[%clk 0:03:00]}  d6 {[%clk 0:02:59]} 3. d4 {[%clk 0:03:00]}  cxd4 {[%clk 0:03:00]} 4. Nxd4 {[%clk 0:03:00]}  Nf6 {[%clk 0:03:00]} 5. Nc3 {[%clk 0:03:00]}  a6 {[%clk 0:03:01]} 6. Bc4 {[%clk 0:03:00]}  e6 {[%clk 0:03:01]} 7. Bb3 {[%clk 0:03:00]}  Nbd7 {[%clk 0:02:58]} 8. Bg5 {[%clk 0:02:59]}  Nc5 {[%clk 0:02:58]} 9. Qe2 {[%clk 0:02:49]}  Be7 {[%clk 0:02:53]} 10. O-O-O {[%clk 0:02:48]}  Nxb3+ {[%clk 0:02:23]} 11. cxb3 {[%clk 0:02:26]}  Bd7 {[%clk 0:02:08]} 12. f4 {[%clk 0:02:20]}  O-O {[%clk 0:02:04]} 13. e5 {[%clk 0:02:02]}  Ne8 {[%clk 0:02:02]} 14. Bxe7 {[%clk 0:01:36]}  Qxe7 {[%clk 0:02:03]} 15. exd6 {[%clk 0:01:34]}  Nxd6 {[%clk 0:02:04]} 16. Kb1 {[%clk 0:01:22]}  Rfd8 {[%clk 0:02:03]} 17. Nd5 {[%clk 0:01:15]}  Qf8 {[%clk 0:01:53]} 18. Nb6 {[%clk 0:01:13]}  Rab8 {[%clk 0:01:52]} 19. Nxd7 {[%clk 0:01:06]}  Rxd7 {[%clk 0:01:53]} 20. Nxe6 {[%clk 0:00:50]}  Qe8 {[%clk 0:00:52]} 21. Nd4 {[%clk 0:00:48]}  Re7 {[%clk 0:00:45]} 22. Qg4 {[%clk 0:00:37]}  g6 {[%clk 0:00:38]} 23. h4 {[%clk 0:00:33]}  f5 {[%clk 0:00:37]} 24. Qf3 {[%clk 0:00:26]}  h5 {[%clk 0:00:27]} 25. Qd5+ {[%clk 0:00:17]}  Nf7 {[%clk 0:00:28]} 26. Nf3 {[%clk 0:00:15]}  Rd8 {[%clk 0:00:26]} 27. Qc4 {[%clk 0:00:13]}  b5 {[%clk 0:00:27]} 28. Rxd8 {[%clk 0:00:12]}  Qxd8 {[%clk 0:00:27]} 29. Qc2 {[%clk 0:00:11]}  Rc7 {[%clk 0:00:18]} 30. Qe2 {[%clk 0:00:11]}  Nd6 {[%clk 0:00:18]} 31. Rd1 {[%clk 0:00:11]}  Qf8 {[%clk 0:00:17]} 32. Qe6+ {[%clk 0:00:11]}  Nf7 {[%clk 0:00:12]} 33. Qxg6+ {[%clk 0:00:10]}  Kh8 {[%clk 0:00:12]} 34. Qxh5+ {[%clk 0:00:10]}  Kg7 {[%clk 0:00:13]} 35. Ng5 {[%clk 0:00:09]}  Qc5 {[%clk 0:00:05]} 36. Ne6+ {[%clk 0:00:08]}  Kf6 {[%clk 0:00:03]} 37. Nxc5 {[%clk 0:00:08]}  Rxc5 {[%clk 0:00:04]} 38. Qf3 {[%clk 0:00:08]}  Rc7 {[%clk 0:00:03]} 39. Qe2 {[%clk 0:00:08]}  Re7 {[%clk 0:00:03]} 40. Qd2 {[%clk 0:00:08]}  Re6 {[%clk 0:00:03]} 41. Qd4+ {[%clk 0:00:08]}  Kg6 {[%clk 0:00:03]} 42. a3 {[%clk 0:00:08]}  Nh6 {[%clk 0:00:03]} 43. h5+ {[%clk 0:00:08]}  Kxh5 {[%clk 0:00:03]} 44. Qg7 {[%clk 0:00:08]}  Rg6 {[%clk 0:00:03]} 45. Rh1+ {[%clk 0:00:08]}  Kg4 {[%clk 0:00:02]} 46. Qxg6+ {[%clk 0:00:08]}  Kxf4 {[%clk 0:00:02]} 47. Qxh6+ {[%clk 0:00:08]}  Ke4 {[%clk 0:00:03]} 48. Qg6 {[%clk 0:00:09]}  Kf4 {[%clk 0:00:04]} 49. Rh4+ {[%clk 0:00:09]}  Ke3 {[%clk 0:00:04]} 50. Qxa6 {[%clk 0:00:09]}  f4 {[%clk 0:00:05]} 51. Qxb5 {[%clk 0:00:10]}  f3 {[%clk 0:00:06]} 52. Rf4 {[%clk 0:00:10]}  Kf2 {[%clk 0:00:07]} 53. gxf3 {[%clk 0:00:10]}  Kg2 {[%clk 0:00:08]} 54. Rf6 {[%clk 0:00:10]}  Kg1 {[%clk 0:00:09]} 55. Rc6 {[%clk 0:00:11]}  Kf2 {[%clk 0:00:09]} 56. Qd5 {[%clk 0:00:12]}  Ke3 {[%clk 0:00:10]} 57. f4 {[%clk 0:00:12]}  Ke2 {[%clk 0:00:09]} 58. f5 {[%clk 0:00:13]}  Kf2 {[%clk 0:00:09]} 59. f6 {[%clk 0:00:13]}  Ke3 {[%clk 0:00:10]} 60. f7 {[%clk 0:00:14]}  Kf2 {[%clk 0:00:11]} 61. Re6 {[%clk 0:00:14]}  Kg3 {[%clk 0:00:11]} 62. Qf5 {[%clk 0:00:14]}  Kh2 {[%clk 0:00:11]} 63. Rf6 {[%clk 0:00:15]}  Kg3 {[%clk 0:00:11]} 64. Rg6+ {[%clk 0:00:15]}  Kh4 {[%clk 0:00:12]} 65. Qe6 {[%clk 0:00:15]}  Kh5 {[%clk 0:00:13]} 66. Qf6 {[%clk 0:00:15]} 1/2-1/2


[Site "https://www.chess.com"]

[Event "Titled Tuesday Blitz October 11 Early 2022"]
[White "Lazavik, Denis"]
[Black "Nakamura, Hikaru"]
[WhiteFideId "13515110"]
[BlackFideId "2016192"]
[WhiteElo "2437"]
[BlackElo "2909"]
[Result "0-1"]
[Round "08"]
[TimeControl "180+1"]
[Date "2022.10.11"]
[WhiteClock "0:00:04"]
[BlackClock "0:00:08"]

1. d4 {[%clk 0:03:00]}  f5 {[%clk 0:02:58]} 2. Nf3 {[%clk 0:02:59]}  Nf6 {[%clk 0:02:56]} 3. g3 {[%clk 0:02:57]}  g6 {[%clk 0:02:56]} 4. Bg2 {[%clk 0:02:58]}  Bg7 {[%clk 0:02:56]} 5. O-O {[%clk 0:02:59]}  O-O {[%clk 0:02:57]} 6. b3 {[%clk 0:02:59]}  d6 {[%clk 0:02:57]} 7. Bb2 {[%clk 0:03:00]}  c6 {[%clk 0:02:54]} 8. c4 {[%clk 0:03:00]}  Qa5 {[%clk 0:02:54]} 9. Nbd2 {[%clk 0:02:48]}  Ne4 {[%clk 0:02:46]} 10. Qc2 {[%clk 0:02:40]}  Nxd2 {[%clk 0:02:44]} 11. Nxd2 {[%clk 0:02:40]}  e5 {[%clk 0:02:44]} 12. c5 {[%clk 0:02:37]}  d5 {[%clk 0:02:33]} 13. dxe5 {[%clk 0:02:30]}  Nd7 {[%clk 0:02:32]} 14. Rac1 {[%clk 0:02:19]}  Nxe5 {[%clk 0:02:30]} 15. a3 {[%clk 0:02:16]}  Re8 {[%clk 0:02:25]} 16. b4 {[%clk 0:02:12]}  Qc7 {[%clk 0:02:23]} 17. e3 {[%clk 0:02:12]}  Be6 {[%clk 0:02:20]} 18. Bd4 {[%clk 0:02:09]}  a5 {[%clk 0:02:11]} 19. Qc3 {[%clk 0:02:07]}  axb4 {[%clk 0:01:32]} 20. axb4 {[%clk 0:02:08]}  Ra2 {[%clk 0:01:28]} 21. Ra1 {[%clk 0:01:53]}  Rxa1 {[%clk 0:01:27]} 22. Rxa1 {[%clk 0:01:52]}  g5 {[%clk 0:01:21]} 23. b5 {[%clk 0:01:40]}  cxb5 {[%clk 0:01:10]} 24. Rb1 {[%clk 0:01:33]}  f4 {[%clk 0:00:46]} 25. Rxb5 {[%clk 0:01:21]}  fxe3 {[%clk 0:00:46]} 26. Qxe3 {[%clk 0:01:18]}  h6 {[%clk 0:00:27]} 27. Qb3 {[%clk 0:01:15]}  Nc6 {[%clk 0:00:26]} 28. Bxg7 {[%clk 0:01:04]}  Qxg7 {[%clk 0:00:26]} 29. Rxb7 {[%clk 0:01:04]}  Qa1+ {[%clk 0:00:21]} 30. Bf1 {[%clk 0:01:00]}  Qd4 {[%clk 0:00:17]} 31. Qc2 {[%clk 0:00:58]}  Bf7 {[%clk 0:00:17]} 32. Nf3 {[%clk 0:00:48]}  Qf6 {[%clk 0:00:16]} 33. Rb6 {[%clk 0:00:23]}  Re6 {[%clk 0:00:12]} 34. Qd3 {[%clk 0:00:18]}  g4 {[%clk 0:00:12]} 35. Nh4 {[%clk 0:00:14]}  Re1 {[%clk 0:00:12]} 36. Qd2 {[%clk 0:00:09]}  Re6 {[%clk 0:00:10]} 37. Be2 {[%clk 0:00:07]}  h5 {[%clk 0:00:10]} 38. Ng2 {[%clk 0:00:07]}  Qa1+ {[%clk 0:00:07]} 39. Bf1 {[%clk 0:00:07]}  Nd4 {[%clk 0:00:08]} 40. Qg5+ {[%clk 0:00:07]}  Kh7 {[%clk 0:00:08]} 41. Nh4 {[%clk 0:00:04]}  Rxb6 {[%clk 0:00:07]} 42. cxb6 {[%clk 0:00:04]}  Qb1 {[%clk 0:00:07]} 43. Qf4 {[%clk 0:00:04]}  Ne2+ {[%clk 0:00:07]} 44. Kg2 {[%clk 0:00:03]}  Nxf4+ {[%clk 0:00:08]} 45. gxf4 {[%clk 0:00:04]}  Qxb6 {[%clk 0:00:08]} 0-1


[Site "https://www.chess.com"]

[Event "Titled Tuesday Blitz October 11 Early 2022"]
[White "Leiva, Gianmarco"]
[Black "Vachylia, Andrii"]
[WhiteFideId "3804399"]
[BlackFideId "14137224"]
[WhiteElo "2285"]
[BlackElo "2318"]
[Result "0-1"]
[Round "08"]
[TimeControl "180+1"]
[Date "2022.10.11"]
[WhiteClock "0:00:01"]
[BlackClock "0:00:06"]

1. e4 {[%clk 0:03:00]}  c5 {[%clk 0:02:59]} 2. Nf3 {[%clk 0:03:00]}  d6 {[%clk 0:03:00]} 3. d4 {[%clk 0:02:55]}  cxd4 {[%clk 0:03:01]} 4. Nxd4 {[%clk 0:02:56]}  Nf6 {[%clk 0:02:56]} 5. Nc3 {[%clk 0:02:56]}  a6 {[%clk 0:02:56]} 6. h4 {[%clk 0:02:52]}  e5 {[%clk 0:02:54]} 7. Nb3 {[%clk 0:02:51]}  Be7 {[%clk 0:02:54]} 8. Bg5 {[%clk 0:02:46]}  Be6 {[%clk 0:02:53]} 9. Bxf6 {[%clk 0:02:40]}  Bxf6 {[%clk 0:02:54]} 10. Nd5 {[%clk 0:02:38]}  O-O {[%clk 0:02:22]} 11. g4 {[%clk 0:02:22]}  Bxh4 {[%clk 0:02:11]} 12. Qf3 {[%clk 0:02:21]}  Bg5 {[%clk 0:02:08]} 13. Bd3 {[%clk 0:02:05]}  Nd7 {[%clk 0:02:02]} 14. a4 {[%clk 0:01:52]}  h6 {[%clk 0:01:58]} 15. a5 {[%clk 0:01:47]}  Rc8 {[%clk 0:01:58]} 16. Kf1 {[%clk 0:01:39]}  Re8 {[%clk 0:01:55]} 17. Ra4 {[%clk 0:01:35]}  Bxd5 {[%clk 0:01:38]} 18. exd5 {[%clk 0:01:35]}  Nf6 {[%clk 0:01:38]} 19. Kg2 {[%clk 0:01:17]}  Qd7 {[%clk 0:01:38]} 20. Rb4 {[%clk 0:01:13]}  Re7 {[%clk 0:01:27]} 21. Bf5 {[%clk 0:01:12]}  Qd8 {[%clk 0:01:25]} 22. Bxc8 {[%clk 0:01:09]}  Qxc8 {[%clk 0:01:26]} 23. c4 {[%clk 0:01:06]}  Nxg4 {[%clk 0:01:21]} 24. c5 {[%clk 0:00:53]}  Nf6 {[%clk 0:01:17]} 25. c6 {[%clk 0:00:43]}  bxc6 {[%clk 0:01:13]} 26. dxc6 {[%clk 0:00:43]}  e4 {[%clk 0:01:12]} 27. Qh3 {[%clk 0:00:40]}  Qxc6 {[%clk 0:01:07]} 28. Rb8+ {[%clk 0:00:37]}  Kh7 {[%clk 0:01:04]} 29. Qf5+ {[%clk 0:00:37]}  g6 {[%clk 0:01:03]} 30. Qc8 {[%clk 0:00:37]}  Qxc8 {[%clk 0:00:55]} 31. Rxc8 {[%clk 0:00:38]}  Rb7 {[%clk 0:00:52]} 32. Nd4 {[%clk 0:00:29]}  Rxb2 {[%clk 0:00:50]} 33. Rd1 {[%clk 0:00:19]}  e3 {[%clk 0:00:48]} 34. Rc2 {[%clk 0:00:19]}  Rxc2 {[%clk 0:00:27]} 35. Nxc2 {[%clk 0:00:19]}  exf2 {[%clk 0:00:27]} 36. Kxf2 {[%clk 0:00:19]}  d5 {[%clk 0:00:28]} 37. Nb4 {[%clk 0:00:19]}  Ne4+ {[%clk 0:00:24]} 38. Kf3 {[%clk 0:00:19]}  Nd2+ {[%clk 0:00:23]} 39. Ke2 {[%clk 0:00:17]}  Ne4 {[%clk 0:00:23]} 40. Kf3 {[%clk 0:00:15]}  Bd2 {[%clk 0:00:18]} 41. Nxd5 {[%clk 0:00:12]}  f5 {[%clk 0:00:18]} 42. Nf6+ {[%clk 0:00:09]}  Kg7 {[%clk 0:00:08]} 43. Nxe4 {[%clk 0:00:10]}  fxe4+ {[%clk 0:00:09]} 44. Kxe4 {[%clk 0:00:10]}  Bxa5 {[%clk 0:00:09]} 45. Rd7+ {[%clk 0:00:07]}  Kf6 {[%clk 0:00:10]} 46. Rd6+ {[%clk 0:00:07]}  Kf7 {[%clk 0:00:10]} 47. Rxa6 {[%clk 0:00:08]}  Bd8 {[%clk 0:00:10]} 48. Ke5 {[%clk 0:00:08]}  Be7 {[%clk 0:00:09]} 49. Ra7 {[%clk 0:00:06]}  h5 {[%clk 0:00:09]} 50. Rb7 {[%clk 0:00:06]}  h4 {[%clk 0:00:07]} 51. Kf4 {[%clk 0:00:06]}  Ke6 {[%clk 0:00:06]} 52. Kg4 {[%clk 0:00:05]}  Kf7 {[%clk 0:00:07]} 53. Rb3 {[%clk 0:00:04]}  Kg7 {[%clk 0:00:06]} 54. Rf3 {[%clk 0:00:05]}  Bf6 {[%clk 0:00:05]} 55. Rb3 {[%clk 0:00:06]}  Be7 {[%clk 0:00:06]} 56. Rb7 {[%clk 0:00:07]}  Kf7 {[%clk 0:00:06]} 57. Rb1 {[%clk 0:00:08]}  Ke6 {[%clk 0:00:06]} 58. Rf1 {[%clk 0:00:09]}  Bf6 {[%clk 0:00:06]} 59. Kf4 {[%clk 0:00:05]}  Kf7 {[%clk 0:00:07]} 60. Rh1 {[%clk 0:00:04]}  Be7 {[%clk 0:00:07]} 61. Ke5 {[%clk 0:00:04]}  Bf6+ {[%clk 0:00:08]} 62. Kd5 {[%clk 0:00:05]}  Kg7 {[%clk 0:00:08]} 63. Rg1 {[%clk 0:00:03]}  Kh6 {[%clk 0:00:08]} 64. Ke6 {[%clk 0:00:04]}  Bd8 {[%clk 0:00:08]} 65. Rd1 {[%clk 0:00:03]}  Bb6 {[%clk 0:00:07]} 66. Rh1 {[%clk 0:00:02]}  Kh5 {[%clk 0:00:07]} 67. Ke5 {[%clk 0:00:02]}  Bc7+ {[%clk 0:00:07]} 68. Ke4 {[%clk 0:00:02]}  g5 {[%clk 0:00:08]} 69. Rc1 {[%clk 0:00:01]}  Bf4 {[%clk 0:00:06]} 70. Rc8 {[%clk 0:00:02]}  Kg4 {[%clk 0:00:07]} 71. Rh8 {[%clk 0:00:01]}  h3 {[%clk 0:00:07]} 72. Kd3 {[%clk 0:00:01]}  Kg3 {[%clk 0:00:07]} 73. Ke2 {[%clk 0:00:01]}  Kg2 {[%clk 0:00:06]} 74. Ke1 {[%clk 0:00:01]}  h2 {[%clk 0:00:06]} 0-1


[Site "https://www.chess.com"]